[Event "Romanian Women Championship 2024"]
[Site "Eforie Nord"]
[Date "2024.02.28"]
[Round "6.1"]
[White "Peptan, Corina-Isabela"]
[Black "Lehaci, Miruna-Daria"]
[Result "0-1"]
[ECO "E01"]
[WhiteElo "2314"]
[BlackElo "2227"]
[Annotator "TA"]
[PlyCount "95"]
[EventDate "2024.02.24"]
[EventType "swiss"]
[EventCountry "ROU"]
[SourceTitle "playchess.com"]
[Source "ChessBase"]
[SourceQuality "1"]
[TimeControl "40/5400+30:900+30"]

{[%evp 19,95,-27,-25,-70,-46,-70,-56,-108,-103,-132,-134,-115,-97,-153,-148,-158,-165,-154,-150,-221,-172,-207,-229,-283,-263,-263,-241,-514,-520,-511,-496,-510,-378,-436,-376,-362,-370,-574,-247,-596,-585,-587,-575,-589,-580,-591,-597,-609,-614,-660,-611,-611,-602,-1286,-816,-761,-568,-573,-570,-574,-572,-537,-514,-616,-618,-601,-611,-636,-631,-605,-605,-721,-690,-730,-729,-1029,-1022,-707]} 1. d4 {[%emt 0:05:51]} e6 {[%emt 0:00:47]} 2. c4 {[%emt 0:00:12]} Nf6 {[%emt 0:00:10]} 3. g3 {[%emt 0:01:42]} c5 {[%emt 0:00:24]} 4. Nf3 {[%emt 0:00:35]} cxd4 {[%emt 0:00:50]} 5. Nxd4 {[%emt 0:00:06]} d5 {[%emt 0:01:02]} 6. Bg2 {[%emt 0:00:14]} e5 {[%emt 0:01:13]} 7. Nb3 {[%emt 0:03:48]} d4 {[%emt 0:13:45]} 8. O-O {[%emt 0:00:30]} Nc6 {[%emt 0:02:15]} 9. Bg5 {[%emt 0:15:27]} Be7 {[%emt 0:03:55]} 10. N1d2 {[%emt 0:04:48]} O-O {[%emt 0:02:44]} 11. h3 {[%emt 0:07:41]} h6 {[%emt 0:03:47]} 12. Bxf6 {[%emt 0:00:08]} Bxf6 {[%emt 0:00:04]} 13. a3 {[%emt 0:03:13]} (13. Nc1 $15) 13... Be7 $17 {[%emt 0:04:03]} 14. e3 {[%emt 0:16:34]} dxe3 {[%emt 0:08:55]} 15. fxe3 {[%emt 0:00:02]} Qd3 {[%emt 0:03:31]} 16. Qf3 {[%emt 0:04:45]} (16. Qe1 $142) 16... Be6 {[%emt 0:03:48][%cal Oa7a5]} 17. Rac1 {[%emt 0:00:55]} Rad8 {[%emt 0:02:35]} 18. Qf2 {[%emt 0:12:21]} a5 {[%emt 0:06:01] Black is much more active.} 19. a4 {[%emt 0:11:43]} (19. Rc3 $17 {keeps fighting.} Qd7 20. Ne4) 19... Qd7 {[%emt 0:03:26]} 20. Kh2 {[%emt 0:00:48]} Nb4 {[%emt 0:00:35]} 21. Qf3 {[%emt 0:01:22]} b6 {[%emt 0:03:28][%cal Ob4d3]} ({But not} 21... Qxa4 22. Ra1 Qd7 23. Rxa5 $19) 22. Qb7 {[%emt 0:05:22]} Bxh3 {[%emt 0:04:17] [#] ...Qxb7 is the strong threat. This pair of bishops is nice.} 23. Qxb6 {[%emt 0:01:12]} (23. Qxd7 Bxd7 24. c5 bxc5 (24... Bxa4 $2 25. cxb6 Nd5 26. Nxa5 $19) 25. Nxa5) 23... Bxg2 $19 {[%emt 0:00:17]} 24. Kxg2 {[%emt 0:00:01]} Nd3 {[%emt 0:00:25]} 25. Rc2 {[%emt 0:00:50]} Qg4 {[%emt 0:00:47]} 26. Nf3 {[%emt 0:01:13]} Rd6 {[%emt 0:11:36]} 27. Qb7 {[%emt 0:01:00]} Rg6 {[%emt 0:02:36]} 28. Qxe7 {[%emt 0:00:21]} (28. Kh1 $142 Bc5 29. Nh2 Qxg3 30. Nxc5 Nxc5 31. Qf3) 28... Qxg3+ {[%emt 0:00:05]} 29. Kh1 {[%emt 0:00:08][%cal Oe7h4] [#] Black must now prevent Qh4!} Ne1 $1 {[%emt 0:00:13][%mdl 512] Black is clearly winning.} 30. Qh4 {[%emt 0:02:04] aiming for Qxg3.} Nxc2 {[%emt 0:00:37]} 31. Qxg3 {[%emt 0:00:04]} Rxg3 {[%emt 0:00:04]} 32. Kh2 {[%emt 0:00:37]} Rg4 {[%emt 0:01:20]} 33. Nxe5 {[%emt 0:00:45]} Re4 {[%emt 0:00:08]} 34. Nd7 {[%emt 0:00:19]} Rfe8 {[%emt 0:01:18]} 35. c5 {[%emt 0:00:30]} Nxe3 {[%emt 0:04:51]} 36. Rc1 {[%emt 0:00:33]} Nd5 {[%emt 0:01:51] And now ...Rg4 would win.} 37. c6 {[%emt 0:00:34]} Nc7 {[%emt 0:00:13]} 38. Nxa5 {[%emt 0:00:23]} Re2+ {[%emt 0:01:17]} 39. Kg1 {[%emt 0:00:22]} Rxb2 {[%emt 0:01:06]} 40. Nc4 {[%emt 0:00:00]} Rbe2 {[%emt 0:00:00]} 41. Nd6 {[%emt 0:06:54]} Re1+ {[%emt 0:03:17]} 42. Rxe1 {[%emt 0:00:05]} Rxe1+ {[%emt 0:00:03][%mdl 4096] Endgame. KRN-KNN} 43. Kf2 {[%emt 0:00:05]} Rc1 {[%emt 0:01:07]} 44. Nf5 {[%emt 0:07:52]} Kh8 {[%emt 0:02:47]} (44... Rxc6 $2 {perishes.} 45. Ne7+ Kh7 46. Nxc6 $18) 45. Ne7 {[%emt 0:02:33]} h5 {[%emt 0:04:06]} 46. Ne5 {[%emt 0:01:16]} g5 {[%emt 0:02:26]} 47. Nxf7+ {[%emt 0:00:38]} Kg7 {[%emt 0:00:04]} 48. Nd6 {[%emt 0:01:04] Weighted Error Value: White=0.50/Black=0.35.  Mistake:       	White=5     	---        Inaccurate:     	White=1     	---        OK:         	White=7     	Black=12     Best:        	White=2     	Black=4      Brilliant:      	---       	Black=1} 0-1

[Event "Romanian Women Championship 2024"]
[Site "Eforie Nord"]
[Date "2024.02.28"]
[Round "6.2"]
[White "Cosma, Elena-Luminita"]
[Black "Schiopu, Oana-Magdalena"]
[Result "1-0"]
[ECO "A46"]
[WhiteElo "2236"]
[BlackElo "1750"]
[Annotator "TA"]
[PlyCount "71"]
[EventDate "2024.02.24"]
[EventType "swiss"]
[EventCountry "ROU"]
[SourceTitle "playchess.com"]
[Source "ChessBase"]
[SourceQuality "1"]
[TimeControl "40/5400+30:900+30"]

{[%evp 9,71,11,19,0,12,10,0,8,12,18,30,14,83,78,60,43,175,168,151,170,171,160,167,155,199,202,219,187,300,275,216,156,484,366,349,336,380,374,364,385,389,389,397,391,425,425,419,424,410,377,401,410,429,431,437,434,558,564,729,721,723,718,675,641]} 1. d4 {[%emt 0:00:05]} Nf6 {[%emt 0:00:15]} 2. Nf3 {[%emt 0:00:05]} e6 {[%emt 0:00:12]} 3. g3 {[%emt 0:00:03]} b5 {[%emt 0:00:57]} 4. Bg2 {[%emt 0:00:14]} d5 {[%emt 0:00:28]} 5. a4 {[%emt 0:01:18]} b4 {[%emt 0:01:02]} 6. O-O {[%emt 0:00:06][%cal Oc2c4]} Be7 {[%emt 0:01:25] [#]} 7. c4 $1 {[%emt 0:01:10]} bxc3 {[%emt 0:01:31]} 8. bxc3 {[%emt 0:00:14][%cal Oc3c4] The position is equal.} Nbd7 {[%emt 0:01:45] [#]} 9. c4 $1 {[%emt 0:01:04]} c5 {[%emt 0:05:04]} (9... c6 10. c5) 10. cxd5 {[%emt 0:06:22]} exd5 {[%emt 0:03:21]} (10... Nxd5 $11 11. Ba3 O-O) 11. dxc5 {[%emt 0:00:58]} Nxc5 {[%emt 0:00:58]} 12. Nd4 {[%emt 0:00:48] Threatens to win with Nc6.} (12. Ne5 $5 Qc7 13. Nd3 $14 (13. Bxd5 $2 Qxe5 $19)) 12... O-O {[%emt 0:06:34] [#]} (12... Qd7 $14) 13. Nc6 $1 $18 {[%emt 0:01:59]} Qd7 {[%emt 0:01:08]} 14. Nxe7+ {[%emt 0:00:05]} Qxe7 {[%emt 0:00:05]} 15. Ba3 $1 {[%emt 0:00:46][%cal Od1c2] Black must now prevent Qc2!} (15. Bxd5 Nxd5 16. Qxd5 Bb7 $15) 15... Ba6 {[%emt 0:05:05][%cal Of6e4]} 16. Nc3 $1 {[%emt 0:01:58]} (16. Bxd5 $2 Rad8 (16... Bxe2 17. Bxc5 Qe5 18. Bd6 $11) (16... Nxd5 17. Qxd5 Rac8 18. Nc3 $11) 17. Bxc5 Qxc5 18. Bxf7+ Kxf7 19. Qb3+ Qd5 20. Qxd5+ Nxd5 $19 (20... Rxd5 $2 21. Nc3 $19)) 16... Rfd8 {[%emt 0:03:53]} 17. Qd4 {[%emt 0:13:05]} (17. Bxd5 $2 Nxd5 18. Nxd5 Qe5 $19) 17... Rac8 {[%emt 0:10:09]} 18. Bh3 {[%emt 0:01:13] This pair of bishops is nice.} ({Worse is} 18. Bxd5 Qc7 19. Rad1 Ne6 $15) (18. Nxd5 Nxd5 19. Bxd5 Bxe2 $14) 18... Rc7 {[%emt 0:01:55]} (18... Rc6 {was necessary.} 19. Nb5 Re8) 19. Rfc1 {[%emt 0:04:22]} Bc4 {[%emt 0:07:33]} 20. e3 {[%emt 0:15:21]} Rdc8 $2 {[%emt 0:22:55] Loses the game.} (20... Rc6 $16 {is more resistant.} 21. Nxd5 Bxd5 22. Rxc5 (22. Bxc5 Qe8 $16) 22... Rxc5) 21. Bxc5 {[%emt 0:06:35]} Qxc5 {[%emt 0:02:27]} 22. Qxc5 {[%emt 0:00:58]} Rxc5 {[%emt 0:00:06]} 23. Bxc8 {[%emt 0:00:04]} Rxc8 {[%emt 0:00:05]} 24. Nb5 {[%emt 0:02:01]} a6 {[%emt 0:04:20]} 25. Nd6 {[%emt 0:02:58]} Rc6 {[%emt 0:00:08] [#]} 26. Rab1 $1 {[%emt 0:00:22] White threatens Rb8+ and mate.} Kf8 {[%emt 0:02:16]} (26... g6 27. Rb8+) 27. Nxc4 {[%emt 0:04:36]} dxc4 {[%emt 0:00:12][%mdl 4096] Endgame. KRR-KRN} 28. Rb4 {[%emt 0:00:04]} c3 {[%emt 0:00:23]} 29. Rd4 {[%emt 0:01:52]} Ke7 {[%emt 0:00:53]} 30. Kf1 {[%emt 0:00:09]} Ke6 {[%emt 0:01:03]} 31. Ke2 {[%emt 0:00:21] White is clearly winning.} a5 {[%emt 0:00:52]} 32. e4 {[%emt 0:01:03] Against Nd5} ({Much less strong is} 32. Kd3 Nd5 33. Rc4 Rb6 $18) 32... Ke5 {[%emt 0:02:46]} 33. Kd3 {[%emt 0:00:59]} c2 {[%emt 0:01:24]} 34. f4+ {[%emt 0:00:25]} Ke6 {[%emt 0:00:42]} 35. Rxc2 {[%emt 0:00:41]} Rxc2 {[%emt 0:00:05]} 36. Kxc2 {[%emt 0:00:06] Weighted Error Value: White=0.16 (very precise) /Black=0.52.  Loses game:     	---       	Black=1      Mistake:       	---       	Black=3      OK:         	White=15    	Black=5      Strong:       	White=2     	---} 1-0

[Event "Romanian Women Championship 2024"]
[Site "Eforie Nord"]
[Date "2024.02.28"]
[Round "6.3"]
[White "Sandu, Mihaela"]
[Black "Obada, Ema"]
[Result "1-0"]
[ECO "B12"]
[WhiteElo "2265"]
[BlackElo "1969"]
[Annotator "TA"]
[PlyCount "101"]
[EventDate "2024.02.24"]
[EventType "swiss"]
[EventCountry "ROU"]
[SourceTitle "playchess.com"]
[Source "ChessBase"]
[SourceQuality "1"]
[TimeControl "40/5400+30:900+30"]

{[%evp 9,101,13,11,-1,2,-18,-8,-16,8,18,56,-43,-20,-27,-25,-26,-27,-28,-29,-33,-32,-30,0,-33,-8,0,0,0,0,0,0,0,0,0,0,0,0,0,8,0,0,0,0,0,0,0,0,-8,-16,-12,-11,0,0,-98,-104,-101,15,0,0,0,77,67,166,137,336,333,329,316,554,459,603,565,1035,938,950,899,2165,2101,29961,29962,29966,29967,29967,29968,29966,29967,29961,29957,29954,29958,9664,5763,5404,5385]} 1. e4 {[%emt 0:00:04]} c6 {[%emt 0:00:05]} 2. d4 {[%emt 0:00:04]} d5 {[%emt 0:00:03]} 3. e5 {[%emt 0:00:06]} c5 {[%emt 0:00:05]} 4. dxc5 {[%emt 0:00:19]} e6 {[%emt 0:00:06]} 5. Be3 {[%emt 0:00:28]} Nd7 {[%emt 0:00:29][%csl LRc5,LRe5]} 6. Bb5 {[%emt 1:32:29]} Ne7 {[%emt 0:01:06]} 7. Nf3 {[%emt 0:00:00]} Nf5 {[%emt 0:01:03] Droht ...Nxe3.} 8. Bd4 {[%emt 0:00:00] Die Stellung ist ausgeglichen.} Nxd4 {[%emt 0:00:41]} 9. Qxd4 {[%emt 0:00:00]} a6 {[%emt 0:01:14]} 10. Bd3 {[%emt 0:00:00]} (10. Bxd7+ $14 Bxd7 11. b4) 10... Nxc5 {[%emt 0:07:55]} 11. O-O {[%emt 0:00:00]} Nxd3 {[%emt 0:03:59]} 12. cxd3 {[%emt 0:00:00]} Bd7 {[%emt 0:01:12]} 13. Nc3 {[%emt 0:00:00]} Be7 {[%emt 0:06:09]} 14. Ne2 {[%emt 0:00:00]} O-O {[%emt 0:19:56]} 15. Ng3 {[%emt 0:00:00]} f5 {[%emt 0:20:50]} 16. Ne2 {[%emt 0:00:00]} Rc8 {[%emt 0:05:04]} 17. Rfc1 {[%emt 0:00:00]} Qa5 {[%emt 0:02:07][%cal Of5f4]} 18. a3 {[%emt 0:00:00]} Rxc1+ {[%emt 0:07:46]} 19. Rxc1 {[%emt 0:00:00]} Rc8 {[%emt 0:00:15]} 20. Rxc8+ {[%emt 0:00:00]} Bxc8 {[%emt 0:00:04]} 21. h4 {[%emt 0:00:00]} Bd7 {[%emt 0:03:04]} 22. Qe3 {[%emt 0:00:00]} Qd8 {[%emt 0:04:47]} 23. g3 {[%emt 0:00:00]} Qc8 {[%emt 0:02:11]} 24. Ned4 {[%emt 0:00:00]} h6 {[%emt 0:02:24]} 25. Qd2 {[%emt 0:00:00]} Kh7 {[%emt 0:00:54]} 26. Ne2 {[%emt 0:00:00]} g6 {[%emt 0:00:32]} 27. Nf4 {[%emt 0:00:00]} Qc7 {[%emt 0:04:55]} 28. h5 {[%emt 0:07:06]} g5 {[%emt 0:00:38]} 29. Ng6 {[%emt 0:00:07]} Be8 {[%emt 0:00:33]} 30. Nxe7 {[%emt 0:02:29]} Qxe7 $11 {[%emt 0:00:02][%mdl 4096] Endspiel. KQB-KQN} 31. Qa5 {[%emt 0:00:16] Verhindert Qc5} (31. Nd4 $11) 31... Bxh5 $17 {[%emt 0:00:51]} 32. Nd4 {[%emt 0:00:05]} Kg7 {[%emt 0:01:39]} (32... f4 $17 33. Kg2 Qg7 34. Nxe6 Qxe5) 33. Qb6 $36 {[%emt 0:00:14][%mdl 3072] Weiss hat Kompensation. Schwarz steht unter Druck.} Kf7 {[%emt 0:00:18]} 34. Nb3 {[%emt 0:00:37]} Bf3 {[%emt 0:02:06] [#]} (34... d4 $11) 35. d4 $1 $16 {[%emt 0:01:17]} h5 {[%emt 0:00:48]} (35... Kg6 $14) 36. Nc5 $18 {[%emt 0:00:06]} h4 $2 {[%emt 0:00:36] Führt Schwarz ins Verderben.} (36... f4 $16) 37. gxh4 {[%emt 0:00:51]} gxh4 {[%emt 0:00:06][%cal Bg5h4,Bh4h3][%mdl 32] ( -> ...Qg5+)} 38. Qxb7 {[%emt 0:00:05]} Qxb7 {[%emt 0:00:55]} (38... a5 {ist wohl besser.} 39. Qxe7+ Kxe7) 39. Nxb7 {[%emt 0:00:05] KB-KN} h3 {[%emt 0:00:16]} 40. Kh2 {[%emt 0:00:00][%cal Ob7c5] Droht stark Nc5!} Bg2 {[%emt 0:00:00]} 41. f4 {[%emt 0:08:13]} Ke7 {[%emt 0:00:53]} 42. b4 {[%emt 0:00:12]} Kf7 {[%emt 0:00:34]} 43. a4 {[%emt 0:08:44][%cal Ba3a4,Ba4b5][%mdl 32] jetzt b5 und aus.} Bf1 {[%emt 0:01:40] [#]} 44. b5 $1 {[%emt 0:00:19][%mdl 512]} axb5 {[%emt 0:00:12]} 45. axb5 {[%emt 0:00:03]} Ke7 {[%emt 0:00:10] [#]} 46. b6 $1 {[%emt 0:00:05]} Kd7 {[%emt 0:00:17]} 47. Nc5+ {[%emt 0:00:04]} Kc6 {[%emt 0:00:13]} 48. b7 {[%emt 0:00:04]} Kc7 {[%emt 0:00:04]} 49. Nxe6+ {[%emt 0:00:39]} Kxb7 {[%emt 0:00:05]} 50. Ng7 {[%emt 0:00:03]} Kc7 {[%emt 0:01:18]} 51. Nxf5 {[%emt 0:00:06] Gewichteter Fehlerwert: Weiß=0.11 (sehr präzise) /Schwarz=0.47.  Verlustzug:     	---       	Schwarz=1     Fehler:       	Weiß=2     	Schwarz=4     Ungenau:       	Weiß=1     	Schwarz=4     OK:         	Weiß=11    	Schwarz=12    Bester:       	Weiß=1     	Schwarz=2     Stark:        	Weiß=1     	---} 1-0

[Event "Romanian Women Championship 2024"]
[Site "Eforie Nord"]
[Date "2024.02.28"]
[Round "6.4"]
[White "Ciolacu, Alessia-Mihaela"]
[Black "Sava, Ana-Maria"]
[Result "1-0"]
[ECO "A56"]
[WhiteElo "2175"]
[BlackElo "1916"]
[Annotator "RC"]
[PlyCount "59"]
[EventDate "2024.02.24"]
[EventType "swiss"]
[EventCountry "ROU"]
[SourceTitle "playchess.com"]
[Source "ChessBase"]
[SourceQuality "1"]
[TimeControl "40/5400+30:900+30"]

1. Nf3 {[%emt 0:00:04]} Nf6 {[%emt 0:00:26]} 2. c4 {[%emt 0:00:28]} c5 {[%emt 0:00:58]} 3. g3 {[%emt 0:01:05]} d6 {[%emt 0:00:38]} 4. d4 {[%emt 0:00:56]} Nbd7 {[%emt 0:01:15]} 5. d5 {[%emt 0:04:19]} e5 {[%emt 0:00:15]} 6. Nc3 {[%emt 0:04:08]} Be7 {[%emt 0:00:23]} 7. Bg2 {[%emt 0:00:32]} O-O {[%emt 0:00:12]} 8. O-O {[%emt 0:00:43]} Ne8 {[%emt 0:00:22]} 9. e4 {[%emt 0:01:53]} g6 {[%emt 0:00:25]} 10. Ne1 {[%emt 0:04:35]} Ng7 {[%emt 0:03:52]} 11. f4 {[%emt 0:02:42]} f5 {[%emt 0:01:16]} 12. Nf3 {[%emt 0:04:28]} Bf6 {[%emt 0:02:55]} 13. exf5 {[%emt 0:02:27]} Nxf5 {[%emt 0:01:01]} 14. Ne4 {[%emt 0:00:27]} exf4 {[%emt 0:08:40]} 15. Nxf6+ {[%emt 0:04:08]} Nxf6 {[%emt 0:02:40]} 16. Bxf4 {[%emt 0:00:49]} a6 {[%emt 0:05:45]} 17. a4 {[%emt 0:07:27]} Rb8 {[%emt 0:03:36]} 18. Qd3 {[%emt 0:00:46]} Bd7 {[%emt 0:01:38]} 19. h3 {[%emt 0:01:08]} Be8 {[%emt 0:03:12]} 20. g4 {[%emt 0:00:42]} Ng7 {[%emt 0:00:20]} 21. Ng5 {[%emt 0:00:54]} b5 {[%emt 0:01:31]} 22. axb5 {[%emt 0:02:55]} axb5 {[%emt 0:00:30]} 23. b3 {[%emt 0:01:14]} bxc4 {[%emt 0:01:21]} 24. bxc4 {[%emt 0:00:07]} Bf7 {[%emt 0:04:14]} 25. Ra7 {[%emt 0:01:58]} Rb6 {[%emt 0:07:45]} 26. Nxf7 {[%emt 0:00:51]} Rxf7 {[%emt 0:00:48]} 27. Rxf7 {[%emt 0:00:10]} Kxf7 {[%emt 0:00:05]} 28. Bg5 {[%emt 0:00:16]} Nge8 {[%emt 0:00:47]} 29. Bxf6 {[%emt 0:00:08]} Nxf6 {[%emt 0:00:09]} 30. g5 {[%emt 0:00:05]} 1-0

[Event "Romanian Women Championship 2024"]
[Site "Eforie Nord"]
[Date "2024.02.28"]
[Round "6.5"]
[White "Trifoi, Mihaela-Ioana"]
[Black "Hoanca, Alexia-Ioana"]
[Result "1/2-1/2"]
[ECO "B13"]
[WhiteElo "2003"]
[BlackElo "1748"]
[Annotator "RC"]
[PlyCount "94"]
[EventDate "2024.02.24"]
[EventType "swiss"]
[EventCountry "ROU"]
[SourceTitle "playchess.com"]
[Source "ChessBase"]
[SourceQuality "1"]
[TimeControl "40/5400+30:900+30"]

1. e4 {[%emt 0:00:04]} c6 {[%emt 0:00:02]} 2. d4 {[%emt 0:00:07]} d5 {[%emt 0:00:21]} 3. exd5 {[%emt 0:00:07]} cxd5 {[%emt 0:00:07]} 4. Bd3 {[%emt 0:00:05]} Nc6 {[%emt 0:00:09]} 5. c3 {[%emt 0:00:07]} Qc7 {[%emt 0:00:12]} 6. h3 {[%emt 0:00:42]} g6 {[%emt 0:00:34]} 7. Nf3 {[%emt 0:00:07]} Bf5 {[%emt 0:00:04]} 8. Bxf5 {[%emt 0:02:52]} gxf5 {[%emt 0:00:44]} 9. O-O {[%emt 0:00:24]} Nf6 {[%emt 0:00:58]} 10. c4 {[%emt 0:00:24]} dxc4 {[%emt 0:05:31]} 11. Qa4 {[%emt 0:02:49]} O-O-O {[%emt 0:10:15]} 12. Qxc4 {[%emt 0:00:16]} Nd5 {[%emt 0:08:52]} 13. Nc3 {[%emt 0:15:43]} Nxc3 {[%emt 0:02:51]} 14. bxc3 {[%emt 0:00:17]} e6 {[%emt 0:00:35]} 15. Bg5 {[%emt 0:04:00]} Rd7 {[%emt 0:07:02]} 16. a4 {[%emt 0:03:27]} Rg8 {[%emt 0:06:00]} 17. a5 {[%emt 0:00:48]} h6 {[%emt 0:02:00]} 18. Bd2 {[%emt 0:04:55]} a6 {[%emt 0:03:53]} 19. Rfb1 {[%emt 0:01:18]} Rd5 {[%emt 0:02:29]} 20. Qd3 {[%emt 0:07:22]} Rxa5 {[%emt 0:06:38]} 21. c4 {[%emt 0:01:46]} Rxa1 {[%emt 0:00:56]} 22. Rxa1 {[%emt 0:00:06]} Bg7 {[%emt 0:00:58]} 23. Rb1 {[%emt 0:04:24]} Rd8 {[%emt 0:07:08]} 24. d5 {[%emt 0:03:20]} Ne5 {[%emt 0:11:15]} 25. Nxe5 {[%emt 0:00:30]} Qxe5 {[%emt 0:00:11]} 26. Qb3 {[%emt 0:01:26]} Rd7 {[%emt 0:00:57]} 27. dxe6 {[%emt 0:08:57]} fxe6 {[%emt 0:10:29]} 28. c5 {[%emt 0:12:11]} Kd8 {[%emt 0:02:32]} 29. Ba5+ {[%emt 0:01:38]} Ke7 {[%emt 0:00:41]} 30. Bb4 {[%emt 0:01:07]} Kf7 {[%emt 0:00:33]} 31. Qf3 {[%emt 0:00:34]} Qd5 {[%emt 0:05:48]} 32. Qh5+ {[%emt 0:00:27]} Kg8 {[%emt 0:00:06]} 33. Qe8+ {[%emt 0:00:51]} Kh7 {[%emt 0:00:10]} 34. Re1 {[%emt 0:00:32]} e5 {[%emt 0:02:06]} 35. Re2 {[%emt 0:03:43]} Qf7 {[%emt 0:01:46]} 36. Qxf7 {[%emt 0:06:59]} Rxf7 {[%emt 0:00:04]} 37. Rd2 {[%emt 0:00:12]} e4 {[%emt 0:01:17]} 38. Rd5 {[%emt 0:01:21]} Bf8 {[%emt 0:01:17]} 39. Ba5 {[%emt 0:00:09]} Kg6 {[%emt 0:00:30]} 40. Kf1 {[%emt 0:00:00]} Kf6 {[%emt 0:00:00]} 41. Bb6 {[%emt 0:00:43]} Ke6 {[%emt 0:02:26]} 42. Rd8 {[%emt 0:04:52]} Be7 {[%emt 0:03:14]} 43. Rc8 {[%emt 0:01:16]} Bg5 {[%emt 0:03:15]} 44. c6 {[%emt 0:04:01]} bxc6 {[%emt 0:00:32]} 45. Rxc6+ {[%emt 0:00:06]} Kd5 {[%emt 0:00:24]} 46. Rc5+ {[%emt 0:02:30]} Kd6 {[%emt 0:00:15]} 47. Ra5 {[%emt 0:01:20]} Kc6 {[%emt 0:00:13]} 1/2-1/2

[Event "Romanian Women Championship 2024"]
[Site "Eforie Nord"]
[Date "2024.02.28"]
[Round "6.6"]
[White "Maria, Lia-Alexandra"]
[Black "Sunea, Sara Maria"]
[Result "1-0"]
[ECO "C17"]
[WhiteElo "1937"]
[BlackElo "1561"]
[Annotator "RC"]
[PlyCount "99"]
[EventDate "2024.02.24"]
[EventType "swiss"]
[EventCountry "ROU"]
[SourceTitle "playchess.com"]
[Source "ChessBase"]
[SourceQuality "1"]
[TimeControl "40/5400+30:900+30"]

1. e4 {[%emt 0:00:08]} e6 {[%emt 0:00:06]} 2. d4 {[%emt 0:00:03]} d5 {[%emt 0:00:09]} 3. Nc3 {[%emt 0:00:07]} Bb4 {[%emt 0:00:07]} 4. e5 {[%emt 0:00:43]} c5 {[%emt 0:00:11]} 5. Bd2 {[%emt 0:02:44]} Ne7 {[%emt 0:00:07]} 6. a3 {[%emt 0:03:38]} Bxc3 {[%emt 0:00:08]} 7. Bxc3 {[%emt 0:03:50]} b6 {[%emt 0:00:12]} 8. Nf3 {[%emt 0:08:07]} Ba6 {[%emt 0:00:14]} 9. Bxa6 {[%emt 0:02:49]} Nxa6 {[%emt 0:00:02]} 10. b4 {[%emt 0:05:33]} c4 {[%emt 0:06:41]} 11. O-O {[%emt 0:09:34]} Nc7 {[%emt 0:06:02]} 12. a4 {[%emt 0:02:29]} a6 {[%emt 0:07:46]} 13. Bd2 {[%emt 0:04:06]} Ng6 {[%emt 0:08:12]} 14. c3 {[%emt 0:06:23]} h6 {[%emt 0:04:59]} 15. Ne1 {[%emt 0:02:33]} Qd7 {[%emt 0:07:40]} 16. f4 {[%emt 0:03:11]} O-O-O {[%emt 0:03:56]} 17. Qh5 {[%emt 0:09:35]} Rdf8 {[%emt 0:07:36]} 18. f5 {[%emt 0:07:28]} exf5 {[%emt 0:01:49]} 19. Rxf5 {[%emt 0:00:56]} Ne6 {[%emt 0:03:08]} 20. Rf1 {[%emt 0:01:58]} Rd8 {[%emt 0:07:31]} 21. b5 {[%emt 0:02:39]} a5 {[%emt 0:00:01]} 22. Bc1 {[%emt 0:00:26]} Rhg8 {[%emt 0:03:53]} 23. Ra2 {[%emt 0:01:18]} Qe7 {[%emt 0:04:58]} 24. Ba3 {[%emt 0:03:31]} Qg5 {[%emt 0:01:32]} 25. Qf3 {[%emt 0:02:14]} Nh8 {[%emt 0:02:10]} 26. Nc2 {[%emt 0:03:51]} Qh4 {[%emt 0:02:52]} 27. Ne3 {[%emt 0:02:06]} Ng5 {[%emt 0:01:21]} 28. Qf5+ {[%emt 0:03:44]} Kb7 {[%emt 0:00:49]} 29. Be7 {[%emt 0:02:30]} Nh3+ {[%emt 0:01:03]} 30. Qxh3 {[%emt 0:00:07]} Qxe7 {[%emt 0:00:01]} 31. Qf3 {[%emt 0:00:12]} Qe6 {[%emt 0:02:20]} 32. Nxc4 {[%emt 0:00:11]} Kb8 {[%emt 0:02:07]} 33. Ne3 {[%emt 0:03:30]} Rgf8 {[%emt 0:02:52]} 34. Qf5 {[%emt 0:01:11]} Ng6 {[%emt 0:02:19]} 35. Raf2 {[%emt 0:01:34]} Kc7 {[%emt 0:01:52]} 36. Qd3 {[%emt 0:01:54]} Rd7 {[%emt 0:00:33]} 37. Nf5 {[%emt 0:00:44]} Rg8 {[%emt 0:01:32]} 38. Rc2 {[%emt 0:00:38]} Kb8 {[%emt 0:00:37]} 39. Qg3 {[%emt 0:00:00]} Ka7 {[%emt 0:00:00]} 40. Rcf2 {[%emt 0:00:00]} Rc7 {[%emt 0:00:00]} 41. Nd6 {[%emt 0:02:42]} Rf8 {[%emt 0:04:56]} 42. Rf3 {[%emt 0:01:08]} Kb8 {[%emt 0:02:36]} 43. h4 {[%emt 0:04:02]} h5 {[%emt 0:04:08]} 44. Rf5 {[%emt 0:00:38]} Ka7 {[%emt 0:04:26]} 45. Rxh5 {[%emt 0:00:47]} Rd7 {[%emt 0:01:39]} 46. Rhf5 {[%emt 0:01:48]} Ne7 {[%emt 0:01:07]} 47. Rxf7 {[%emt 0:02:59]} Rxf7 {[%emt 0:00:23]} 48. Rxf7 {[%emt 0:00:13]} Rxd6 {[%emt 0:00:53]} 49. exd6 {[%emt 0:00:07]} Qxf7 {[%emt 0:00:12]} 50. d7 {[%emt 0:00:15]} 1-0

[Event "Romanian Women Championship 2024"]
[Site "Eforie Nord"]
[Date "2024.02.28"]
[Round "6.7"]
[White "Chicarosie, Ioana-Bianca"]
[Black "Batagan, Ilinca-Petra"]
[Result "1/2-1/2"]
[ECO "D00"]
[WhiteElo "1705"]
[BlackElo "1859"]
[Annotator "NA RC"]
[PlyCount "41"]
[EventDate "2024.02.24"]
[EventType "swiss"]
[EventCountry "ROU"]
[SourceTitle "playchess.com"]
[Source "ChessBase"]
[SourceQuality "1"]
[TimeControl "40/5400+30:900+30"]

1. d4 {[%emt 0:00:03]} Nf6 {[%emt 0:01:04]} 2. Bg5 {[%emt 0:00:05]} d5 {[%emt 0:00:47]} 3. Bxf6 {[%emt 0:00:27]} gxf6 {[%emt 0:00:13]} 4. Nf3 {[%emt 0:00:31]} c5 {[%emt 0:01:14]} 5. e3 {[%emt 0:04:20]} e5 {[%emt 0:01:03]} 6. dxe5 {[%emt 0:05:51]} fxe5 {[%emt 0:04:23]} 7. Bb5+ {[%emt 0:08:16]} Nc6 {[%emt 0:09:09]} 8. Nxe5 {[%emt 0:07:20]} Qd6 {[%emt 0:05:32]} 9. Qh5 {[%emt 0:05:42]} Be6 {[%emt 0:01:31]} 10. Nd2 {[%emt 0:07:41]} c4 {[%emt 0:17:41]} 11. c3 {[%emt 0:06:37]} a6 {[%emt 0:11:38]} 12. Ba4 {[%emt 0:09:48]} b5 {[%emt 0:01:51]} 13. Nxc6 {[%emt 0:00:18]} Qxc6 {[%emt 0:05:32]} 14. Bc2 {[%emt 0:02:01]} Rg8 {[%emt 0:04:09]} 15. Qxh7 {[%emt 0:03:53]} Rxg2 {[%emt 0:02:20]} 16. Kf1 {[%emt 0:02:46]} Rg7 {[%emt 0:01:47]} 17. Qh5 {[%emt 0:01:30]} O-O-O {[%emt 0:06:51]} 18. Bf5 {[%emt 0:01:09]} Qd7 {[%emt 0:04:19]} 19. Bxe6 {[%emt 0:00:58]} fxe6 {[%emt 0:00:06]} 20. Ke2 {[%emt 0:01:49]} Bd6 {[%emt 0:01:48]} 21. Rag1 {[%emt 0:02:07]} 1/2-1/2